fUST/lending_fUST_20260621
["ID","MTS","AMOUNT","RATE_DAILY","PERIOD"]
[425848631,1781991042000,-500.0,0.00019605,2]
[425848630,1781991042000,-1454.54545455,0.00019594,2]
[425848634,1781991042000,-248.77014971,0.00019669,2]
[425848629,1781991042000,-1790.09870846,0.00019593,2]
[425848623,1781991042000,-420.906423,0.0001958,2]
[425848628,1781991042000,-300.0,0.00019589,3]
[425848625,1781991042000,-420.906423,0.0001958,2]
[425848627,1781991042000,-377.20669058,0.00019581,2]
[425848626,1781991042000,-630.85139556,0.00019581,2]
[425848684,1781991043000,-645.281298,0.00019859,2]
[425848691,1781991043000,-356.10848272,0.00019873,2]
[425848688,1781991043000,-395.43629004,0.00019873,2]
[425848689,1781991043000,-381.63986843,0.00019873,2]
[425848692,1781991043000,-340.70597444,0.00019873,2]
[425848682,1781991043000,-1014.1624571,0.00019859,2]
[425848686,1781991043000,-364.98556544,0.00019873,2]
[425848683,1781991043000,-534.12734993,0.00019859,2]
[425848685,1781991043000,-337.77791649,0.00019873,2]
[425848687,1781991043000,-336.8336731,0.00019873,2]
[425848679,1781991043000,-466.13029134,0.00019859,2]
[425848671,1781991043000,-930.27363667,0.00019859,2]
[425848681,1781991043000,-483.92066979,0.00019859,2]
[425848677,1781991043000,-865.24176376,0.00019859,2]
[425848678,1781991043000,-542.6250082,0.00019859,2]
[425848676,1781991043000,-462.36514137,0.00019859,2]
[425848674,1781991043000,-479.635038,0.00019859,2]
[425848672,1781991043000,-525.48159281,0.00019859,2]
[425848670,1781991043000,-515.34095445,0.00019859,2]
[425848673,1781991043000,-516.70810377,0.00019859,2]
[425848669,1781991043000,-529.12219891,0.00019859,2]
[425848690,1781991043000,-368.37853225,0.00019873,2]
[425848680,1781991043000,-509.41445133,0.00019859,2]
[425848699,1781991043000,-345.84477586,0.00019873,2]
[425848716,1781991043000,-264449.03309442,0.0002,2]
[425848695,1781991043000,-227.26242751,0.00019873,2]
[425848717,1781991043000,-105631.16766042,0.0002,2]
[425848718,1781991043000,-65729.69834412,0.0002,2]
[425848697,1781991043000,-364.36014259,0.00019873,2]
[425848713,1781991043000,-500.0,0.0001996,2]
[425848714,1781991043000,-5196.43227,0.00019963,2]
[425848710,1781991043000,-212.22545086,0.00019906,2]
[425848705,1781991043000,-541.82931438,0.00019873,2]
[425848709,1781991043000,-325.9,0.000199,2]
[425848706,1781991043000,-500.0,0.00019879,2]
[425848707,1781991043000,-475.71893768,0.00019891,2]
[425848711,1781991043000,-546.63762341,0.00019909,2]
[425848715,1781991043000,-9020.78769642,0.00019999,2]
[425848704,1781991043000,-656.83411588,0.00019873,2]
[425848712,1781991043000,-453.54197319,0.00019918,2]
[425848696,1781991043000,-245.69815263,0.00019873,2]
[425848693,1781991043000,-339.78595041,0.00019873,2]
[425848698,1781991043000,-722.17999668,0.00019873,2]
[425848694,1781991043000,-361.51171466,0.00019873,2]
[425848700,1781991043000,-759.45380579,0.00019873,2]
[425848702,1781991043000,-235.44924084,0.00019873,2]
[425848703,1781991043000,-326.48459864,0.00019873,2]
[425848708,1781991043000,-484.04625573,0.00019893,2]
[425848701,1781991043000,-388.56566503,0.00019873,2]
[425848723,1781991046000,-552.94051817,0.0002,2]
[425848722,1781991046000,-490.1063834,0.0002,2]
[425848815,1781992232000,-233.06949617,0.000163,2]
[425848833,1781992232000,-381.43301169,0.00017035,2]
[425848831,1781992232000,-160.0,0.00016763,2]
[425848821,1781992232000,-6846.98785994,0.00016421,2]
[425848817,1781992232000,-300.0,0.0001642,2]
[425848819,1781992232000,-629.25481196,0.00016421,2]
[425848813,1781992232000,-233.06949617,0.000161,2]
[425848810,1781992232000,-502.4571597,0.0001545,2]
[425848811,1781992232000,-223.649036,0.00015606,2]
[425848827,1781992232000,-500.0,0.00016761,2]
[425848823,1781992232000,-500.0,0.00016437,2]
[425848825,1781992232000,-278.62925738,0.00016437,2]
[425848803,1781992232000,-4497.5428403,0.0001545,2]
[425848835,1781992232000,-300.0,0.00017097,2]
[425848829,1781992232000,-417.15472785,0.00016763,2]
[425848846,1781992232000,-300.0,0.00017097,2]
[425848867,1781992232000,-159.57263732,0.00018566,2]
[425848850,1781992232000,-171.0,0.00017205,2]
[425848837,1781992232000,-300.0,0.00017097,2]
[425848869,1781992232000,-101.97326515,0.00018566,2]
[425848866,1781992232000,-184.66451195,0.00018566,2]
[425848862,1781992232000,-195.9349219,0.00018566,2]
[425848864,1781992232000,-256.92445499,0.00018566,2]
[425848860,1781992232000,-164.01706576,0.00018566,2]
[425848858,1781992232000,-150.62604922,0.00018566,2]
[425848868,1781992232000,-162.32035468,0.00018566,2]
[425848856,1781992232000,-2894.67329998,0.00018479,2]
[425848842,1781992232000,-300.0,0.00017097,2]
[425848841,1781992232000,-300.0,0.00017097,2]
[425848839,1781992232000,-300.0,0.00017097,2]
[425848852,1781992232000,-360.0,0.00017575,2]
[425848854,1781992232000,-849.5000009,0.00018,2]
[425848849,1781992232000,-600.0,0.00017098,2]
[425848845,1781992232000,-300.0,0.00017097,2]
[425848911,1781992239000,-502.40256291,0.00018569,2]
[425848909,1781992239000,-176.00995627,0.00018569,2]
[425848914,1781992239000,-277.95448659,0.00018569,2]
[425848913,1781992239000,-930.95112592,0.00018569,2]
[425848918,1781992239000,-163.66258179,0.00018582,2]
[425848921,1781992239000,-169.61963379,0.00018582,2]
[425848917,1781992239000,-159.13434235,0.00018582,2]
[425848919,1781992239000,-184.92711082,0.00018582,2]
[425848924,1781992239000,-1820.58795556,0.00018582,2]
[425848923,1781992239000,-258.52375123,0.00018582,2]
[425848908,1781992239000,-187.02141432,0.00018569,2]
[425848916,1781992239000,-182.41433784,0.00018569,2]
[425848912,1781992239000,-1243.5379352,0.00018569,2]
[425848900,1781992239000,-1272.72727273,0.00018566,2]
[425848907,1781992239000,-500.0,0.00018568,2]
[425848901,1781992239000,-219.04154918,0.00018566,2]
[425848896,1781992239000,-87.86681861,0.00018566,2]
[425848903,1781992239000,-153.04460055,0.00018566,2]
[425848898,1781992239000,-406.37538602,0.00018566,2]
[425848905,1781992239000,-170.92122238,0.00018566,2]
[425848899,1781992239000,-192.23203804,0.00018566,2]
[425848922,1781992239000,-157.38234005,0.00018582,2]
[425848904,1781992239000,-169.64022627,0.00018566,2]
[425848902,1781992239000,-161.08943013,0.00018566,2]
[425848897,1781992239000,-156.25752429,0.00018566,2]
[425848906,1781992239000,-151.30523841,0.00018566,2]
[425848895,1781992239000,-160.0,0.00016763,2]
[425848910,1781992239000,-164.20063427,0.00018569,2]
[425848920,1781992239000,-152.23646063,0.00018582,2]
[425848915,1781992239000,-158.09529943,0.00018569,2]
[425848926,1781992239000,-182.316751,0.00018582,2]
[425848951,1781992239000,-17860.73550522,0.00019257,2]
[425848953,1781992239000,-1923.00998034,0.00019257,2]
[425848952,1781992239000,-1476.87857012,0.00019257,2]
[425848950,1781992239000,-21488.5411119,0.00019257,2]
[425848949,1781992239000,-841.13,0.00019247,3]
[425848948,1781992239000,-280.37,0.00019247,3]
[425848947,1781992239000,-500.0,0.00019116,2]
[425848945,1781992239000,-305.25779552,0.00018955,2]
[425848946,1781992239000,-2894.67329998,0.00018956,2]
[425848954,1781992239000,-180342.0567359,0.00019257,2]
[425848944,1781992239000,-500.0,0.00018842,2]
[425848942,1781992239000,-170.102,0.0001863,2]
[425848925,1781992239000,-163.99264877,0.00018582,2]
[425848941,1781992239000,-445.0,0.00018592,2]
[425848940,1781992239000,-352.67107658,0.00018582,2]
[425848938,1781992239000,-218.20064033,0.00018582,2]
[425848930,1781992239000,-168.65547452,0.00018582,2]
[425848927,1781992239000,-311.45762461,0.00018582,2]
[425848929,1781992239000,-191.16136734,0.00018582,2]
[425848928,1781992239000,-173.19266077,0.00018582,2]
[425848939,1781992239000,-173.81229649,0.00018582,2]
[425848933,1781992239000,-342.4430909,0.00018582,2]
[425848931,1781992239000,-303.0194493,0.00018582,2]
[425848932,1781992239000,-360.11753566,0.00018582,2]
[425848955,1781992239000,-73342.04559471,0.00019257,2]
[425848934,1781992239000,-157.64447784,0.00018582,2]
[425848937,1781992239000,-193.8278088,0.00018582,2]
[425848935,1781992239000,-155.46177038,0.00018582,2]
[425848936,1781992239000,-174.53386105,0.00018582,2]
[425848943,1781992239000,-720.0,0.00018808,2]
[425848960,1781992240000,-1814.28476284,0.00019257,2]
[425848959,1781992240000,-796.79517445,0.00019257,2]
[425848967,1781992243000,-54907.43701433,0.00019257,2]
[425848966,1781992243000,-1990.70963771,0.00019257,2]
[425848969,1781992243000,-452.0,0.00019257,2]
[425848970,1781992243000,-2512.25604105,0.00019257,2]
[425848968,1781992243000,-12885.20645343,0.00019257,2]
[425848986,1781992246000,-1565.81672411,0.00019257,2]
[425848984,1781992246000,-6579.00954959,0.00019257,2]
[425848985,1781992246000,-1349.19314194,0.00019257,2]
[425848983,1781992246000,-355.3,0.00019257,2]
[425848982,1781992246000,-1247.21235212,0.00019257,2]
[425848980,1781992246000,-63745.74238672,0.00019257,2]
[425848981,1781992246000,-3846.37618434,0.00019257,2]
[425849000,1781992656000,3777.46304088,7.6e-05,2]
[425849006,1781992853000,-218.91726237,0.000115,2]
[425849009,1781992870000,-347.87963374,0.00011899,2]
[425849010,1781992887000,-218.91726237,0.00011899,2]
[425849012,1781992904000,-347.87963374,0.00011899,2]
[425849013,1781992920000,-218.91726237,0.00011899,2]
[425849014,1781992937000,-347.87963374,0.00011899,2]
[425849016,1781992954000,-218.91726237,0.00012,2]
[425849041,1781993432000,-1985.82079674,0.00011896,2]
[425849044,1781993432000,-500.0,0.00011995,2]
[425849042,1781993432000,-500.0,0.00011995,2]
[425849043,1781993432000,-500.0,0.00011995,2]
[425849045,1781993432000,-500.0,0.00011995,2]
[425849049,1781993432000,-500.0,0.00011995,2]
[425849047,1781993432000,-500.0,0.00011995,2]
[425849048,1781993432000,-500.0,0.00011995,2]
[425849046,1781993432000,-500.0,0.00011995,2]
[425849050,1781993432000,-500.0,0.00011995,2]
[425849054,1781993432000,-500.0,0.00011995,2]
[425849052,1781993432000,-354.38000428,0.00011995,2]
[425849053,1781993432000,-500.0,0.00011995,2]
[425849055,1781993432000,-500.0,0.00011995,2]
[425849068,1781993432000,-4255.77030381,0.00012,2]
[425849057,1781993432000,-500.0,0.00011995,2]
[425849051,1781993432000,-500.0,0.00011995,2]
[425849066,1781993432000,-276.26808937,0.00011999,2]
[425849064,1781993432000,-500.0,0.00011995,2]
[425849069,1781993432000,-433.45811007,0.00011995,2]
[425849067,1781993432000,-3042.88400961,0.00012,2]
[425849063,1781993432000,-500.0,0.00011995,2]
[425849065,1781993432000,-500.0,0.00011995,2]
[425849062,1781993432000,-500.0,0.00011995,2]
[425849060,1781993432000,-500.0,0.00011995,2]
[425849061,1781993432000,-500.0,0.00011995,2]
[425849058,1781993432000,-500.0,0.00011995,2]
[425849056,1781993432000,-500.0,0.00011995,2]
[425849059,1781993432000,-500.0,0.00011995,2]
[425849086,1781993438000,-500.0,0.00011995,2]
[425849096,1781993438000,-500.0,0.00011995,2]
[425849093,1781993438000,-500.0,0.00011995,2]
[425849094,1781993438000,-500.0,0.00011995,2]
[425849092,1781993438000,-550.0,0.00011995,2]
[425849091,1781993438000,-500.0,0.00011995,2]
[425849090,1781993438000,-500.0,0.00011995,2]
[425849088,1781993438000,-231.40811007,0.00011995,2]
[425849087,1781993438000,-500.0,0.00011995,2]
[425849079,1781993438000,-500.0,0.00011995,2]
[425849083,1781993438000,-305.10567429,0.00011995,2]
[425849081,1781993438000,-500.0,0.00011995,2]
[425849084,1781993438000,-500.0,0.00011995,2]
[425849082,1781993438000,-194.89432571,0.00011995,2]
[425849095,1781993438000,-500.0,0.00011995,2]
[425849077,1781993438000,-500.0,0.00011995,2]
[425849080,1781993438000,-500.0,0.00011995,2]
[425849078,1781993438000,-500.0,0.00011995,2]
[425849076,1781993438000,-66.54188993,0.00011995,2]
[425849085,1781993438000,-500.0,0.00011995,2]
[425849099,1781993438000,-500.0,0.00011995,2]
[425849089,1781993438000,-268.59188993,0.00011995,2]
[425849101,1781993438000,-500.0,0.00011995,2]
[425849118,1781993438000,-500.0,0.00011995,2]
[425849120,1781993438000,-500.0,0.00011995,2]
[425849119,1781993438000,-500.0,0.00011995,2]
[425849116,1781993438000,-79.31892112,0.00011995,2]
[425849117,1781993438000,-212.39764284,0.00011995,2]
[425849115,1781993438000,-500.0,0.00011995,2]
[425849114,1781993438000,-500.0,0.00011995,2]
[425849111,1781993438000,-500.0,0.00011995,2]
[425849113,1781993438000,-500.0,0.00011995,2]
[425849097,1781993438000,-287.76204953,0.00011995,2]
[425849108,1781993438000,-500.0,0.00011995,2]
[425849107,1781993438000,-500.0,0.00011995,2]
[425849109,1781993438000,-500.0,0.00011995,2]
[425849110,1781993438000,-500.0,0.00011995,2]
[425849106,1781993438000,-500.0,0.00011995,2]
[425849104,1781993438000,-500.0,0.00011995,2]
[425849105,1781993438000,-500.0,0.00011995,2]
[425849103,1781993438000,-500.0,0.00011995,2]
[425849098,1781993438000,-500.0,0.00011995,2]
[425849100,1781993438000,-500.0,0.00011995,2]
[425849102,1781993438000,-500.0,0.00011995,2]
[425849112,1781993438000,-500.0,0.00011995,2]
[425849122,1781993439000,-500.0,0.00011995,2]
[425849121,1781993439000,-500.0,0.00011995,2]
[425849124,1781993439000,-500.0,0.00011995,2]
[425849123,1781993439000,-500.0,0.00011995,2]
[425849126,1781993439000,-4189.45215023,0.00012,2]
[425849128,1781993439000,-35394.1405313,0.00012,2]
[425849127,1781993439000,-1965.83825098,0.00012,2]
[425849125,1781993439000,-24925.44023792,0.00012,2]
[425849137,1781993441000,-1485.55645327,0.00012,2]
[425849136,1781993441000,-2179.84119311,0.00012,2]
[425849135,1781993441000,-8221.01872154,0.00012,2]
[425849134,1781993441000,-1032.17070523,0.00012,2]
[425849284,1781993443000,-468.942,0.00012,2]
[425849285,1781993443000,-813.5,0.00012,2]
[425849415,1781993446000,-500.0,0.0001726,2]
[425849399,1781993446000,-416.7546398,0.00015745,2]
[425849406,1781993446000,-500.0,0.00016712,2]
[425849402,1781993446000,-1000.0,0.0001629,2]
[425849401,1781993446000,-1985.82079674,0.00016148,2]
[425849411,1781993446000,-3316.98186537,0.00017,2]
[425849408,1781993446000,-500.0,0.00016986,2]
[425849404,1781993446000,-500.0,0.00016438,2]
[425849393,1781993446000,-864.0,0.00014809,2]
[425849395,1781993446000,-359.25731995,0.00015,2]
[425849397,1781993446000,-310.127253,0.00015465,2]
[425849392,1781993446000,-1985.82079674,0.00014731,2]
[425849390,1781993446000,-720.0,0.00013463,2]
[425849384,1781993446000,-600.0,0.00012239,2]
[425849382,1781993446000,-4661.34983803,0.00012,2]
[425849388,1781993446000,-1985.82079674,0.00013313,2]
[425849386,1781993446000,-560.74,0.00012329,2]
[425849413,1781993446000,-206.79226945,0.00017132,2]
[425849417,1781993446000,-500.0,0.00017534,2]
[425849431,1781993446000,-500.0,0.00018082,2]
[425849421,1781993446000,-500.0,0.00017808,2]
[425849419,1781993446000,-1985.82079674,0.00017566,2]
[425849444,1781993446000,-156.59724611,0.00018562,2]
[425849448,1781993446000,-197.13739426,0.00018562,2]
[425849450,1781993446000,-194.8955571,0.00018562,2]
[425849456,1781993446000,-158.30697633,0.00018562,2]
[425849454,1781993446000,-176.34142971,0.00018562,2]
[425849458,1781993446000,-165.16360919,0.00018562,2]
[425849452,1781993446000,-197.13602119,0.00018562,2]
[425849446,1781993446000,-346.57948526,0.00018562,2]
[425849437,1781993446000,-500.0,0.00018356,2]
[425849439,1781993446000,-267.333487,0.00018434,2]
[425849435,1781993446000,-186.0,0.00018222,2]
[425849433,1781993446000,-445.0,0.00018222,2]
[425849427,1781993446000,-15094.76648061,0.00018,2]
[425849423,1781993446000,-1000.0,0.00017919,2]
[425849425,1781993446000,-244.0,0.00017919,2]
[425849429,1781993446000,-246.9750412,0.00018046,2]
[425849442,1781993446000,-155.77483957,0.00018561,2]
[425849541,1781993447000,-336.52816479,0.00018566,2]
[425849545,1781993447000,-217.64647853,0.00018566,2]
[425849543,1781993447000,-189.53404452,0.00018566,2]
[425849539,1781993447000,-353.89732368,0.00018566,2]
[425849535,1781993447000,-161.16004847,0.00018566,2]
[425849520,1781993447000,-190.56742661,0.00018566,2]
[425849537,1781993447000,-306.077902,0.00018566,2]
[425849524,1781993447000,-154.05982398,0.00018566,2]
[425849529,1781993447000,-180.90595488,0.00018566,2]
[425849547,1781993447000,-500.0,0.0001863,2]
[425849522,1781993447000,-254.05834099,0.00018566,2]
[425849556,1781993447000,-355.985582,0.00019127,2]
[425849570,1781993447000,-693.15897052,0.00019336,2]
[425849554,1781993447000,-1985.82079674,0.00018983,2]
[425849560,1781993447000,-500.0,0.00019178,2]
[425849553,1781993447000,-500.0,0.00018904,2]
[425849558,1781993447000,-300.0,0.00019178,2]
[425849562,1781993447000,-801.43,0.00019178,2]
[425849564,1781993447000,-263.0,0.00019315,3]
[425849568,1781993447000,-313.19449223,0.00019336,2]
[425849516,1781993447000,-297.785477,0.00018566,2]
[425849572,1781993447000,-394.27478853,0.00019336,2]
[425849566,1781993447000,-311.54967913,0.00019336,2]
[425849585,1781993447000,-141.43164673,0.00019336,2]
[425849578,1781993447000,-352.68285942,0.00019336,2]
[425849551,1781993447000,-162.0,0.000189,7]
[425849533,1781993447000,-169.92810638,0.00018566,2]
[425849504,1781993447000,-196.3805763,0.00018566,2]
[425849514,1781993447000,-156.25879832,0.00018566,2]
[425849461,1781993447000,-163.18907184,0.00018562,2]
[425849463,1781993447000,-252.48666894,0.00018562,2]
[425849465,1781993447000,-156.81305693,0.00018562,2]
[425849467,1781993447000,-183.39908092,0.00018562,2]
[425849469,1781993447000,-176.31064117,0.00018562,2]
[425849471,1781993447000,-417.15472785,0.00018562,2]
[425849477,1781993447000,-160.0,0.00018562,2]
[425849479,1781993447000,-160.0,0.00018562,2]
[425849488,1781993447000,-168.04760111,0.00018566,2]
[425849481,1781993447000,-208.86422413,0.00018566,2]
[425849486,1781993447000,-399.35617481,0.00018566,2]
[425849484,1781993447000,-168.31927289,0.00018566,2]
[425849492,1781993447000,-493.72470046,0.00018566,2]
[425849500,1781993447000,-273.15345455,0.00018566,2]
[425849490,1781993447000,-159.86756198,0.00018566,2]
[425849494,1781993447000,-914.87106102,0.00018566,2]
[425849498,1781993447000,-155.36456244,0.00018566,2]
[425849502,1781993447000,-174.16226066,0.00018566,2]
[425849496,1781993447000,-1222.05864359,0.00018566,2]
[425849506,1781993447000,-170.16230093,0.00018566,2]
[425849586,1781993447000,-316.61395267,0.00019336,2]
[425849508,1781993447000,-161.64648338,0.00018566,2]
[425849510,1781993447000,-178.41727619,0.00018566,2]
[425849512,1781993447000,-161.0258221,0.00018566,2]
[425849528,1781993447000,-162.22481006,0.00018566,2]
[425849526,1781993447000,-165.14356012,0.00018566,2]
[425849518,1781993447000,-172.59863677,0.00018566,2]
[425849531,1781993447000,-201.33681912,0.00018566,2]
[425849576,1781993447000,-394.27204238,0.00019336,2]
[425849549,1781993447000,-170.102,0.00018736,2]
[425849582,1781993447000,-276.5150003,0.00019336,2]
[425849642,1781993447000,-595.57095399,0.0001934,2]
[425849654,1781993447000,-322.32009694,0.0001934,2]
[425849644,1781993447000,-345.19727354,0.0001934,2]
[425849649,1781993447000,-324.44962011,0.0001934,2]
[425849650,1781993447000,-361.81190977,0.0001934,2]
[425849646,1781993447000,-508.11668197,0.0001934,2]
[425849648,1781993447000,-330.28712025,0.0001934,2]
[425849645,1781993447000,-381.13485323,0.0001934,2]
[425849647,1781993447000,-308.11964796,0.0001934,2]
[425849655,1781993447000,-612.155804,0.0001934,2]
[425849659,1781993447000,-200.58089762,0.00019343,2]
[425849658,1781993447000,-379.06808904,0.0001934,2]
[425849657,1781993447000,-673.05632957,0.0001934,2]
[425849660,1781993447000,-190.95932921,0.00019343,2]
[425849656,1781993447000,-707.79464735,0.0001934,2]
[425849661,1781993447000,-204.78321898,0.00019343,2]
[425849664,1781993447000,-170.18811367,0.00019357,2]
[425849662,1781993447000,-247.74213626,0.00019343,2]
[425849665,1781993447000,-1638.52916001,0.00019357,2]
[425849663,1781993447000,-162.22268832,0.00019343,2]
[425849667,1781993447000,-204.79452308,0.00019357,2]
[425849666,1781993447000,-156.76760877,0.00019357,2]
[425849669,1781993447000,-195.68696329,0.00019357,2]
[425849668,1781993447000,-189.42786317,0.00019357,2]
[425849574,1781993447000,-389.79111419,0.00019336,2]
[425849671,1781993447000,-176.89013802,0.00019357,2]
[425849672,1781993447000,-378.94858662,0.00019452,2]
[425849651,1781993447000,-236.46671677,0.0001934,2]
[425849653,1781993447000,-339.85621277,0.0001934,2]
[425849670,1781993447000,-196.25184183,0.00019357,2]
[425849641,1781993447000,-312.51759665,0.0001934,2]
[425849652,1781993447000,-402.67363824,0.0001934,2]
[425849588,1781993447000,-330.32721838,0.00019336,2]
[425849600,1781993447000,-1090.90909091,0.0001934,2]
[425849590,1781993447000,-326.37814368,0.00019336,2]
[425849606,1781993447000,-207.30845809,0.0001934,2]
[425849602,1781993447000,-207.78486201,0.0001934,2]
[425849598,1781993447000,-179.29441835,0.0001934,2]
[425849596,1781993447000,-222.68269118,0.0001934,2]
[425849608,1781993447000,-417.72844827,0.0001934,2]
[425849594,1781993447000,-196.16340997,0.0001934,2]
[425849604,1781993447000,-197.0898958,0.0001934,2]
[425849592,1781993447000,-504.97333789,0.00019336,2]
[425849611,1781993447000,-336.63854578,0.0001934,2]
[425849580,1781993447000,-491.14426206,0.00019336,2]
[425849616,1781993447000,-319.73512395,0.0001934,2]
[425849613,1781993447000,-798.71234961,0.0001934,2]
[425849635,1781993447000,-323.29296676,0.0001934,2]
[425849631,1781993447000,-392.7611526,0.0001934,2]
[425849629,1781993447000,-348.32452131,0.0001934,2]
[425849627,1781993447000,-546.3069091,0.0001934,2]
[425849637,1781993447000,-356.83455237,0.0001934,2]
[425849625,1781993447000,-310.72912488,0.0001934,2]
[425849621,1781993447000,-1829.74212205,0.0001934,2]
[425849633,1781993447000,-340.32460187,0.0001934,2]
[425849639,1781993447000,-322.05164421,0.0001934,2]
[425849615,1781993447000,-336.09520222,0.0001934,2]
[425849623,1781993447000,-2444.11728718,0.0001934,2]
[425849619,1781993447000,-987.44940091,0.0001934,2]
[425849726,1781993448000,-529.02428914,0.00019852,2]
[425849751,1781993448000,-414.61691618,0.00019856,2]
[425849727,1781993448000,-727.27272727,0.00019852,2]
[425849729,1781993448000,-474.920929,0.00019852,2]
[425849734,1781993448000,-489.56721552,0.00019852,2]
[425849735,1781993448000,-757.46000683,0.00019852,2]
[425849738,1781993448000,-392.32681994,0.00019856,2]
[425849747,1781993448000,-415.56972402,0.00019856,2]
[425849673,1781993448000,-279.110864,0.00019529,2]
[425849740,1781993448000,-226.77098659,0.00019856,2]
[425849731,1781993448000,-495.49082757,0.00019852,2]
[425849756,1781993448000,-504.14280333,0.00019856,2]
[425849744,1781993448000,-445.36538236,0.00019856,2]
[425849742,1781993448000,-478.71791197,0.00019856,2]
[425849749,1781993448000,-394.17979159,0.00019856,2]
[425849754,1781993448000,-1198.06852442,0.00019856,2]
[425849752,1781993448000,-504.95781867,0.00019856,2]
[425849757,1781993448000,-479.60268593,0.00019856,2]
[425849763,1781993448000,-3666.17593076,0.00019856,2]
[425849765,1781993448000,-466.09368732,0.00019856,2]
[425849767,1781993448000,-819.46036365,0.00019856,2]
[425849759,1781993448000,-1481.17410137,0.00019856,2]
[425849724,1781993448000,-591.41218279,0.00019852,2]
[425849746,1781993448000,-358.58883671,0.00019856,2]
[425849713,1781993448000,-5644.800894,0.00019772,2]
[425849687,1781993448000,-189.206597,0.00019529,2]
[425849711,1781993448000,-160.0,0.00019772,2]
[425849676,1781993448000,-309.944511,0.00019529,2]
[425849678,1781993448000,-459.889023,0.00019529,2]
[425849674,1781993448000,-160.0,0.00019529,2]
[425849686,1781993448000,-160.0,0.00019529,2]
[425849702,1781993448000,-300.0,0.00019589,3]
[425849696,1781993448000,-160.0,0.00019582,2]
[425849682,1781993448000,-227.122603,0.00019529,2]
[425849680,1781993448000,-160.0,0.00019529,2]
[425849693,1781993448000,-3416.926277,0.00019529,2]
[425849689,1781993448000,-218.413194,0.00019529,2]
[425849698,1781993448000,-967.471372,0.00019582,2]
[425849707,1781993448000,-1000.0,0.00019711,2]
[425849691,1781993448000,-160.0,0.00019529,2]
[425849700,1781993448000,-1774.942744,0.00019582,2]
[425849695,1781993448000,-6673.852555,0.00019529,2]
[425849717,1781993448000,-162.66601609,0.000198,10]
[425849715,1781993448000,-11129.601789,0.00019772,2]
[425849722,1781993448000,-1039.73845579,0.00019852,2]
[425849719,1781993448000,-467.3245187,0.00019852,2]
[425849705,1781993448000,-151.0,0.00019656,2]
[425849770,1781993448000,-589.1417289,0.00019856,2]
[425849703,1781993448000,-426.81759057,0.000196,2]
[425849709,1781993448000,-492.0,0.00019711,2]
[425849720,1781993448000,-469.79173834,0.00019852,2]
[425849684,1781993448000,-294.245207,0.00019529,2]
[425849772,1781993448000,-510.4869028,0.00019856,2]
[425849801,1781993448000,-1009.58449436,0.00019856,2]
[425849761,1781993448000,-2744.61318307,0.00019856,2]
[425849824,1781993448000,-237.85946884,0.00019873,2]
[425849823,1781993448000,-290.54601506,0.00019873,2]
[425849841,1781993448000,-392.50368365,0.00019873,2]
[425849832,1781993448000,-378.85572633,0.00019873,2]
[425849839,1781993448000,-472.93343353,0.00019873,2]
[425849837,1781993448000,-391.37392657,0.00019873,2]
[425849834,1781993448000,-242.02312787,0.00019873,2]
[425849845,1781993448000,-253.84241988,0.00019873,2]
[425849835,1781993448000,-286.791688,0.00019873,2]
[425849843,1781993448000,-466.38531114,0.00019873,2]
[425849851,1781993448000,-210.0,0.00019929,2]
[425849853,1781993448000,-190.01,0.00019929,2]
[425849856,1781993448000,-160.0,0.00019963,2]
[425849860,1781993448000,-1223.080965,0.00019963,2]
[425849849,1781993448000,-2995.98439169,0.000199,2]
[425849866,1781993448000,-1200.43014939,0.0002,2]
[425849864,1781993448000,-239897.02014379,0.0002,2]
[425849868,1781993448000,-46355.38751532,0.0002,2]
[425849847,1781993448000,-353.78027604,0.00019873,2]
[425849854,1781993448000,-1000.0,0.0001996,5]
[425849858,1781993448000,-691.540482,0.00019963,2]
[425849862,1781993448000,-59227.25475431,0.0002,2]